[Event "Early-Titled-Tuesday-Blitz-April-02-2024"]
[Site "Chess.com"]
[Date "2024.04.02"]
[Round "3"]
[White "Keeper0416"]
[Black "enriquebutti"]
[Result "1-0"]
[WhiteElo "2562"]
[BlackElo "2199"]
[TimeControl "180+1"]
[EndTime "8:28:53 PDT"]
[Termination "Keeper0416 won on time"]

1. d4 {[%clk 0:02:49]} 1... Nf6 {[%clk 0:02:58.2]} 2. c4 {[%clk 0:02:44.5]} 2...
e6 {[%clk 0:02:53]} 3. Nc3 {[%clk 0:02:42.9]} 3... d5 {[%clk 0:02:50.4]} 4. e3
{[%clk 0:02:40.9]} 4... c5 {[%clk 0:02:48.6]} 5. Nf3 {[%clk 0:02:41.1]} 5... Nc6
{[%clk 0:02:48.1]} 6. Be2 {[%clk 0:02:40.1]} 6... dxc4 {[%clk 0:02:42.1]} 7.
Bxc4 {[%clk 0:02:39.5]} 7... cxd4 {[%clk 0:02:41.1]} 8. exd4 {[%clk 0:02:39.5]}
8... Be7 {[%clk 0:02:40.5]} 9. O-O {[%clk 0:02:40]} 9... O-O {[%clk 0:02:39.7]}
10. a3 {[%clk 0:02:30.3]} 10... b6 {[%clk 0:02:34.1]} 11. Be3 {[%clk 0:02:22.5]}
11... Bb7 {[%clk 0:02:33.3]} 12. Qe2 {[%clk 0:02:23.1]} 12... Na5 {[%clk
0:02:29.9]} 13. Ba2 {[%clk 0:02:22.4]} 13... Rc8 {[%clk 0:02:27.9]} 14. Rac1
{[%clk 0:02:01.2]} 14... a6 {[%clk 0:01:59.9]} 15. b4 {[%clk 0:01:47.9]} 15...
Nc6 {[%clk 0:01:58.4]} 16. Rfd1 {[%clk 0:01:47.1]} 16... Nb8 {[%clk 0:01:55.4]}
17. Ne5 {[%clk 0:01:39.4]} 17... Nbd7 {[%clk 0:01:54.5]} 18. Bg5 {[%clk
0:01:36.3]} 18... b5 {[%clk 0:01:46.6]} 19. h3 {[%clk 0:01:18]} 19... Nb6 {[%clk
0:01:38]} 20. Bxf6 {[%clk 0:01:16.9]} 20... Bxf6 {[%clk 0:01:34.5]} 21. Ne4
{[%clk 0:01:15.7]} 21... Bxe4 {[%clk 0:01:28.9]} 22. Qxe4 {[%clk 0:01:15.4]}
22... Bxe5 {[%clk 0:01:22.7]} 23. dxe5 {[%clk 0:01:11.8]} 23... Rxc1 {[%clk
0:01:21.2]} 24. Rxc1 {[%clk 0:01:12.7]} 24... Qd7 {[%clk 0:01:14.3]} 25. Bb1
{[%clk 0:00:51.5]} 25... g6 {[%clk 0:01:09]} 26. h4 {[%clk 0:00:51.6]} 26... Nd5
{[%clk 0:01:02.5]} 27. h5 {[%clk 0:00:48.4]} 27... Rc8 {[%clk 0:00:56.9]} 28.
Re1 {[%clk 0:00:30.3]} 28... Qe7 {[%clk 0:00:53.5]} 29. Qg4 {[%clk 0:00:27.9]}
29... Rc3 {[%clk 0:00:44.9]} 30. Be4 {[%clk 0:00:26.4]} 30... Rxa3 {[%clk
0:00:39.9]} 31. Bxd5 {[%clk 0:00:26.5]} 31... exd5 {[%clk 0:00:39.4]} 32. hxg6
{[%clk 0:00:18.7]} 32... hxg6 {[%clk 0:00:38.8]} 33. e6 {[%clk 0:00:18.9]} 33...
Rc3 {[%clk 0:00:33.2]} 34. g3 {[%clk 0:00:08.7]} 34... Rc4 {[%clk 0:00:31.5]}
35. Qh3 {[%clk 0:00:02.6]} 35... d4 {[%clk 0:00:24]} 36. Qh6 {[%clk 0:00:01.9]}
36... d3 {[%clk 0:00:20.2]} 37. exf7+ {[%clk 0:00:02.4]} 37... Qxf7 {[%clk
0:00:19.9]} 38. Qd2 {[%clk 0:00:02.8]} 38... Qd7 {[%clk 0:00:17.3]} 39. Re3
{[%clk 0:00:03.2]} 39... Rd4 {[%clk 0:00:15.6]} 40. Rf3 {[%clk 0:00:03.4]} 40...
Kg7 {[%clk 0:00:15.1]} 41. Kh2 {[%clk 0:00:02.8]} 41... Qd5 {[%clk 0:00:14]} 42.
Re3 {[%clk 0:00:02.9]} 42... Qh5+ {[%clk 0:00:12.9]} 43. Kg1 {[%clk 0:00:03.5]}
43... Qd5 {[%clk 0:00:10.7]} 44. Kh2 {[%clk 0:00:02.4]} 44... Qd7 {[%clk
0:00:08.1]} 45. Kg1 {[%clk 0:00:02.5]} 45... Rd5 {[%clk 0:00:06.9]} 46. Qc3+
{[%clk 0:00:02.6]} 46... Kg8 {[%clk 0:00:04.3]} 47. Qd2 {[%clk 0:00:02.1]} 47...
Qf5 {[%clk 0:00:01.2]} 48. Qc1 {[%clk 0:00:01.5]} 1-0

[Event "Early-Titled-Tuesday-Blitz-April-02-2024"]
[Site "Chess.com"]
[Date "2024.04.02"]
[Round "3"]
[White "Actuary44"]
[Black "Fy_Rakotomaharo"]
[Result "1/2-1/2"]
[WhiteElo "2514"]
[BlackElo "2692"]
[TimeControl "180+1"]
[EndTime "8:28:54 PDT"]
[Termination "Game drawn - insufficient material"]

1. e4 {[%clk 0:03:00.9]} 1... e5 {[%clk 0:02:55.8]} 2. d4 {[%clk 0:03:01.1]}
2... Nf6 {[%clk 0:02:56.6]} 3. dxe5 {[%clk 0:03:00.4]} 3... Nxe4 {[%clk
0:02:57.1]} 4. Bd3 {[%clk 0:03:00.8]} 4... d5 {[%clk 0:02:56.7]} 5. exd6 {[%clk
0:03:00.9]} 5... Nxd6 {[%clk 0:02:55.9]} 6. Nf3 {[%clk 0:03:00.4]} 6... Nc6
{[%clk 0:02:56.6]} 7. O-O {[%clk 0:03:00.3]} 7... Be7 {[%clk 0:02:57.4]} 8. Nc3
{[%clk 0:03:00]} 8... O-O {[%clk 0:02:57.9]} 9. h3 {[%clk 0:03:00.6]} 9... Re8
{[%clk 0:02:52.4]} 10. Bf4 {[%clk 0:03:00.6]} 10... Bf6 {[%clk 0:02:52]} 11. Qd2
{[%clk 0:02:49.9]} 11... Be6 {[%clk 0:02:43]} 12. Rfe1 {[%clk 0:02:48.7]} 12...
Nb4 {[%clk 0:02:29]} 13. Rad1 {[%clk 0:02:36.1]} 13... Nxd3 {[%clk 0:02:28.1]}
14. Qxd3 {[%clk 0:02:36.5]} 14... Nc4 {[%clk 0:02:18.9]} 15. Rxe6 {[%clk
0:02:04.8]} 15... Rxe6 {[%clk 0:02:04]} 16. Qxc4 {[%clk 0:02:04.3]} 16... Qe8
{[%clk 0:02:03.9]} 17. Nd5 {[%clk 0:01:57.1]} 17... Re4 {[%clk 0:01:58.4]} 18.
Qxc7 {[%clk 0:01:39]} 18... Bxb2 {[%clk 0:01:50]} 19. Qxb7 {[%clk 0:01:38.8]}
19... Ba3 {[%clk 0:01:37.8]} 20. Nc7 {[%clk 0:01:29.5]} 20... Rb8 {[%clk
0:01:37.5]} 21. Nxe8 {[%clk 0:01:06.6]} 21... Rxb7 {[%clk 0:01:36.8]} 22. Rd8
{[%clk 0:01:07.3]} 22... Bf8 {[%clk 0:01:20]} 23. Bd6 {[%clk 0:01:06.8]} 23...
Rb1+ {[%clk 0:01:14.2]} 24. Kh2 {[%clk 0:01:06.6]} 24... Rd1 {[%clk 0:01:14.7]}
25. Nf6+ {[%clk 0:00:59.9]} 25... gxf6 {[%clk 0:01:14.1]} 26. Rxf8+ {[%clk
0:01:00.1]} 26... Kg7 {[%clk 0:01:14.7]} 27. Rd8 {[%clk 0:00:53.6]} 27... Rc1
{[%clk 0:01:06.3]} 28. Rc8 {[%clk 0:00:49.3]} 28... h5 {[%clk 0:00:54]} 29. Kg3
{[%clk 0:00:46.4]} 29... Ra4 {[%clk 0:00:45.5]} 30. Bf8+ {[%clk 0:00:43.8]}
30... Kh7 {[%clk 0:00:45.9]} 31. Rc7 {[%clk 0:00:40.7]} 31... Rxa2 {[%clk
0:00:42.8]} 32. c4 {[%clk 0:00:35.8]} 32... Rac2 {[%clk 0:00:41.8]} 33. c5
{[%clk 0:00:35.1]} 33... a5 {[%clk 0:00:42]} 34. Rxf7+ {[%clk 0:00:34.7]} 34...
Kg8 {[%clk 0:00:42.3]} 35. Rxf6 {[%clk 0:00:34.7]} 35... a4 {[%clk 0:00:42.8]}
36. Ra6 {[%clk 0:00:32.2]} 36... Kxf8 {[%clk 0:00:41.6]} 37. Rxa4 {[%clk
0:00:31.3]} 37... Rxc5 {[%clk 0:00:41.8]} 38. Rf4+ {[%clk 0:00:31.1]} 38... Ke7
{[%clk 0:00:41.5]} 39. Re4+ {[%clk 0:00:31.1]} 39... Kd8 {[%clk 0:00:41.3]} 40.
Rd4+ {[%clk 0:00:31.1]} 40... Kc7 {[%clk 0:00:41.5]} 41. Re4 {[%clk 0:00:31.3]}
41... R1c2 {[%clk 0:00:39.3]} 42. Re5 {[%clk 0:00:30.6]} 42... Kd6 {[%clk
0:00:34.2]} 43. Rxc5 {[%clk 0:00:28.6]} 43... Rxc5 {[%clk 0:00:35.1]} 44. Kh4
{[%clk 0:00:26.5]} 44... Rc2 {[%clk 0:00:35.1]} 45. Ng5 {[%clk 0:00:25.4]} 45...
Ke5 {[%clk 0:00:31.1]} 46. Kxh5 {[%clk 0:00:23.7]} 46... Rxf2 {[%clk 0:00:30.3]}
47. g4 {[%clk 0:00:24.3]} 47... Rf8 {[%clk 0:00:24.7]} 48. Kg6 {[%clk
0:00:19.4]} 48... Rg8+ {[%clk 0:00:25]} 49. Kh6 {[%clk 0:00:19.2]} 49... Kf4
{[%clk 0:00:24.1]} 50. Ne6+ {[%clk 0:00:14.4]} 50... Ke5 {[%clk 0:00:20.1]} 51.
Ng5 {[%clk 0:00:14.7]} 51... Kf6 {[%clk 0:00:20]} 52. Nh7+ {[%clk 0:00:12.4]}
52... Kf7 {[%clk 0:00:19.6]} 53. Ng5+ {[%clk 0:00:12.2]} 53... Kf8 {[%clk
0:00:18.2]} 54. h4 {[%clk 0:00:11.9]} 54... Rh8+ {[%clk 0:00:18.5]} 55. Kg6
{[%clk 0:00:11.9]} 55... Rxh4 {[%clk 0:00:18.9]} 56. Nh7+ {[%clk 0:00:08.9]}
56... Kg8 {[%clk 0:00:16.7]} 57. Nf6+ {[%clk 0:00:08.9]} 57... Kh8 {[%clk
0:00:16.9]} 58. g5 {[%clk 0:00:09.3]} 58... Rf4 {[%clk 0:00:16.1]} 59. Kf7
{[%clk 0:00:09.1]} 59... Rf1 {[%clk 0:00:13.1]} 60. g6 {[%clk 0:00:08.8]} 60...
Rg1 {[%clk 0:00:13.8]} 61. Nh5 {[%clk 0:00:09]} 61... Rg5 {[%clk 0:00:13.5]} 62.
g7+ {[%clk 0:00:08.9]} 62... Kh7 {[%clk 0:00:13.4]} 63. Nf6+ {[%clk 0:00:08.7]}
63... Kh6 {[%clk 0:00:14]} 64. g8=Q {[%clk 0:00:05]} 64... Rxg8 {[%clk
0:00:13.9]} 65. Nxg8+ {[%clk 0:00:05.9]} 1/2-1/2

[Event "Early-Titled-Tuesday-Blitz-April-02-2024"]
[Site "Chess.com"]
[Date "2024.04.02"]
[Round "3"]
[White "Midgardsormur"]
[Black "yaguigor"]
[Result "1/2-1/2"]
[WhiteElo "2451"]
[BlackElo "2628"]
[TimeControl "180+1"]
[EndTime "8:28:56 PDT"]
[Termination "Game drawn by repetition"]

1. e4 {[%clk 0:03:00.9]} 1... c5 {[%clk 0:02:58.8]} 2. Nc3 {[%clk 0:03:01]} 2...
Nc6 {[%clk 0:02:59.1]} 3. Bb5 {[%clk 0:03:01.2]} 3... Nd4 {[%clk 0:02:59.2]} 4.
Nf3 {[%clk 0:03:01.6]} 4... e6 {[%clk 0:02:59.5]} 5. O-O {[%clk 0:03:01.2]} 5...
a6 {[%clk 0:02:57.3]} 6. Bd3 {[%clk 0:03:01.2]} 6... Nc6 {[%clk 0:02:57.4]} 7.
a3 {[%clk 0:03:01.1]} 7... g5 {[%clk 0:02:53.5]} 8. b4 {[%clk 0:02:56.1]} 8...
g4 {[%clk 0:02:51.8]} 9. Ne1 {[%clk 0:02:54.4]} 9... h5 {[%clk 0:02:49.1]} 10.
f4 {[%clk 0:02:50.4]} 10... cxb4 {[%clk 0:02:45.8]} 11. axb4 {[%clk 0:02:49.4]}
11... Bxb4 {[%clk 0:02:40.6]} 12. Bb2 {[%clk 0:02:44.9]} 12... Rh6 {[%clk
0:02:27]} 13. e5 {[%clk 0:02:27]} 13... f5 {[%clk 0:02:23.5]} 14. exf6 {[%clk
0:02:22.2]} 14... Nxf6 {[%clk 0:02:22.6]} 15. Qe2 {[%clk 0:02:12.9]} 15... Kf8
{[%clk 0:02:03.2]} 16. Ne4 {[%clk 0:01:59.7]} 16... Nxe4 {[%clk 0:01:55.4]} 17.
Bxe4 {[%clk 0:01:57.9]} 17... Bc5+ {[%clk 0:01:55.8]} 18. Kh1 {[%clk 0:01:57.1]}
18... Bd4 {[%clk 0:01:56.2]} 19. Bxd4 {[%clk 0:01:10.6]} 19... Nxd4 {[%clk
0:01:54.3]} 20. Qe3 {[%clk 0:01:02.2]} 20... Qf6 {[%clk 0:01:50.9]} 21. c3
{[%clk 0:00:58.9]} 21... Nf5 {[%clk 0:01:50.2]} 22. Bxf5 {[%clk 0:00:58.7]}
22... exf5 {[%clk 0:01:47.5]} 23. Nd3 {[%clk 0:00:58.7]} 23... d6 {[%clk
0:01:46.8]} 24. Nb4 {[%clk 0:00:53.7]} 24... Bd7 {[%clk 0:01:39]} 25. Qb6 {[%clk
0:00:50.9]} 25... Re8 {[%clk 0:01:30.2]} 26. Qxb7 {[%clk 0:00:48.2]} 26... Rh7
{[%clk 0:01:31]} 27. Qxa6 {[%clk 0:00:45]} 27... h4 {[%clk 0:01:29.9]} 28. Rfe1
{[%clk 0:00:43.4]} 28... h3 {[%clk 0:01:27.6]} 29. g3 {[%clk 0:00:40.2]} 29...
Rhe7 {[%clk 0:01:25.9]} 30. Rxe7 {[%clk 0:00:37.1]} 30... Qxe7 {[%clk
0:01:25.7]} 31. Kg1 {[%clk 0:00:27.1]} 31... Kg7 {[%clk 0:01:09.7]} 32. Qd3
{[%clk 0:00:08.5]} 32... Kg6 {[%clk 0:01:02.4]} 33. Nd5 {[%clk 0:00:04.3]} 33...
Qe2 {[%clk 0:01:00.5]} 34. Qxe2 {[%clk 0:00:04]} 34... Rxe2 {[%clk 0:01:01.3]}
35. Ne3 {[%clk 0:00:04.2]} 35... Rxd2 {[%clk 0:00:57.3]} 36. Rd1 {[%clk
0:00:04.3]} 36... Re2 {[%clk 0:00:54.5]} 37. Rxd6+ {[%clk 0:00:04]} 37... Kh5
{[%clk 0:00:54.8]} 38. Rxd7 {[%clk 0:00:04.3]} 38... Rxe3 {[%clk 0:00:54.3]} 39.
Rg7 {[%clk 0:00:04.6]} 39... Rxc3 {[%clk 0:00:52.3]} 40. Rg5+ {[%clk 0:00:04.5]}
40... Kh6 {[%clk 0:00:52.9]} 41. Rxf5 {[%clk 0:00:05.4]} 41... Rc1+ {[%clk
0:00:53]} 42. Kf2 {[%clk 0:00:05.9]} 42... Rh1 {[%clk 0:00:53.4]} 43. Rg5 {[%clk
0:00:05.5]} 43... Rxh2+ {[%clk 0:00:53.9]} 44. Kf1 {[%clk 0:00:05.6]} 44... Rh1+
{[%clk 0:00:53.6]} 45. Kf2 {[%clk 0:00:05.7]} 45... Rh2+ {[%clk 0:00:53.1]} 46.
Kf1 {[%clk 0:00:06.1]} 46... Ra2 {[%clk 0:00:52.9]} 47. Rxg4 {[%clk 0:00:05.9]}
47... h2 {[%clk 0:00:53.2]} 48. Rh4+ {[%clk 0:00:06.3]} 48... Kg6 {[%clk
0:00:53.8]} 49. g4 {[%clk 0:00:06]} 49... Kf6 {[%clk 0:00:53.6]} 50. Rh6+ {[%clk
0:00:06]} 50... Ke7 {[%clk 0:00:53]} 51. Rh3 {[%clk 0:00:06.9]} 51... Kd6 {[%clk
0:00:52.8]} 52. g5 {[%clk 0:00:06.6]} 52... Ke6 {[%clk 0:00:51.3]} 53. g6 {[%clk
0:00:06.4]} 53... Kf6 {[%clk 0:00:51.5]} 54. f5 {[%clk 0:00:06.3]} 54... Kxf5
{[%clk 0:00:41.8]} 55. g7 {[%clk 0:00:06.4]} 55... Ra1+ {[%clk 0:00:42]} 56. Kg2
{[%clk 0:00:06.6]} 56... Rg1+ {[%clk 0:00:42.2]} 57. Kxh2 {[%clk 0:00:07.1]}
57... Rxg7 {[%clk 0:00:43.1]} 58. Rg3 {[%clk 0:00:07.4]} 58... Ra7 {[%clk
0:00:42.6]} 59. Kg2 {[%clk 0:00:07.3]} 59... Kf4 {[%clk 0:00:43.2]} 60. Rf3+
{[%clk 0:00:07.3]} 60... Ke4 {[%clk 0:00:42.8]} 61. Rf2 {[%clk 0:00:07.4]} 61...
Rg7+ {[%clk 0:00:42.5]} 62. Kh2 {[%clk 0:00:06.2]} 62... Ke3 {[%clk 0:00:42.3]}
63. Ra2 {[%clk 0:00:06]} 63... Rg8 {[%clk 0:00:41]} 64. Ra3+ {[%clk 0:00:06.1]}
64... Ke4 {[%clk 0:00:40.6]} 65. Ra4+ {[%clk 0:00:06.6]} 65... Ke3 {[%clk
0:00:41.1]} 66. Ra3+ {[%clk 0:00:07.1]} 66... Ke4 {[%clk 0:00:41.5]} 67. Ra4+
{[%clk 0:00:07.7]} 67... Kf3 {[%clk 0:00:41.6]} 68. Ra3+ {[%clk 0:00:08.1]}
68... Kf2 {[%clk 0:00:41.9]} 69. Ra2+ {[%clk 0:00:08.6]} 69... Kf3 {[%clk
0:00:42.3]} 70. Ra3+ {[%clk 0:00:09.1]} 70... Kf2 {[%clk 0:00:42.8]} 71. Ra2+
{[%clk 0:00:09.7]} 71... Kf3 {[%clk 0:00:43.4]} 72. Ra3+ {[%clk 0:00:10.2]}
1/2-1/2

[Event "Early-Titled-Tuesday-Blitz-April-02-2024"]
[Site "Chess.com"]
[Date "2024.04.02"]
[Round "3"]
[White "chess_blitz00"]
[Black "dealshark"]
[Result "1-0"]
[WhiteElo "2543"]
[BlackElo "2311"]
[TimeControl "180+1"]
[EndTime "8:28:56 PDT"]
[Termination "chess_blitz00 won on time"]

1. Nf3 {[%clk 0:03:00.9]} 1... d5 {[%clk 0:02:59.5]} 2. g3 {[%clk 0:03:01.1]}
2... Nf6 {[%clk 0:03:00]} 3. Bg2 {[%clk 0:03:02]} 3... e6 {[%clk 0:03:00.6]} 4.
O-O {[%clk 0:03:02.5]} 4... Be7 {[%clk 0:03:01.3]} 5. d4 {[%clk 0:03:02.6]} 5...
O-O {[%clk 0:03:02]} 6. Nbd2 {[%clk 0:03:02.3]} 6... c6 {[%clk 0:03:02.6]} 7. c4
{[%clk 0:03:02.1]} 7... Nbd7 {[%clk 0:03:03]} 8. b3 {[%clk 0:03:02.6]} 8... b6
{[%clk 0:03:03.1]} 9. Bb2 {[%clk 0:03:02.4]} 9... Bb7 {[%clk 0:03:03.7]} 10. Qc2
{[%clk 0:02:59.9]} 10... Rc8 {[%clk 0:03:03.6]} 11. Ne5 {[%clk 0:02:59.2]} 11...
Qc7 {[%clk 0:02:55.2]} 12. f4 {[%clk 0:02:58.2]} 12... c5 {[%clk 0:02:52.5]} 13.
e3 {[%clk 0:02:57.5]} 13... cxd4 {[%clk 0:02:49.8]} 14. exd4 {[%clk 0:02:57.1]}
14... dxc4 {[%clk 0:02:49.2]} 15. bxc4 {[%clk 0:02:52.4]} 15... Bxg2 {[%clk
0:02:49]} 16. Kxg2 {[%clk 0:02:53.3]} 16... Nd5 {[%clk 0:02:31.7]} 17. Qb3
{[%clk 0:02:42.8]} 17... N5f6 {[%clk 0:02:26.2]} 18. Rac1 {[%clk 0:02:30.2]}
18... Qb7+ {[%clk 0:02:26.1]} 19. Qf3 {[%clk 0:02:27]} 19... Qa6 {[%clk
0:02:20.2]} 20. Qb3 {[%clk 0:02:17.8]} 20... Rfd8 {[%clk 0:02:16.9]} 21. Ndf3
{[%clk 0:02:14.7]} 21... Qb7 {[%clk 0:02:12]} 22. Rfe1 {[%clk 0:02:11.5]} 22...
Ne4 {[%clk 0:02:08.2]} 23. Qe3 {[%clk 0:02:07.7]} 23... Ndf6 {[%clk 0:02:05.4]}
24. Rc2 {[%clk 0:01:55.6]} 24... Bb4 {[%clk 0:02:03.3]} 25. Ree2 {[%clk
0:01:50.2]} 25... Qa6 {[%clk 0:01:54.8]} 26. a3 {[%clk 0:01:48]} 26... Be7
{[%clk 0:01:49.9]} 27. h3 {[%clk 0:01:40.3]} 27... Nd6 {[%clk 0:01:49.3]} 28.
Ng5 {[%clk 0:01:29.8]} 28... h6 {[%clk 0:01:45]} 29. Ngxf7 {[%clk 0:01:26]}
29... Nf5 {[%clk 0:01:33.9]} 30. Qf3 {[%clk 0:01:21.7]} 30... Nxd4 {[%clk
0:01:27.2]} 31. Bxd4 {[%clk 0:01:20.5]} 31... Rxd4 {[%clk 0:01:27.7]} 32. Ng5
{[%clk 0:01:12.2]} 32... Rd6 {[%clk 0:01:02.5]} 33. Ne4 {[%clk 0:01:07.3]} 33...
Nxe4 {[%clk 0:01:02.3]} 34. Qxe4 {[%clk 0:01:08.2]} 34... Bf6 {[%clk 0:00:58]}
35. Ng4 {[%clk 0:00:57]} 35... Rf8 {[%clk 0:00:45.6]} 36. Qg6 {[%clk 0:00:48.7]}
36... Kh8 {[%clk 0:00:37.5]} 37. Qe4 {[%clk 0:00:45.7]} 37... Qxa3 {[%clk
0:00:36.5]} 38. h4 {[%clk 0:00:36.7]} 38... Rd3 {[%clk 0:00:35.9]} 39. Re3
{[%clk 0:00:31]} 39... Rxe3 {[%clk 0:00:34.5]} 40. Nxe3 {[%clk 0:00:31.9]} 40...
Rd8 {[%clk 0:00:33.9]} 41. Re2 {[%clk 0:00:17.2]} 41... Qd3 {[%clk 0:00:23.8]}
42. Qf3 {[%clk 0:00:13]} 42... Bd4 {[%clk 0:00:20.4]} 43. Re1 {[%clk 0:00:11.2]}
43... Bxe3 {[%clk 0:00:19.8]} 44. Rxe3 {[%clk 0:00:12.1]} 44... Qxc4 {[%clk
0:00:20.1]} 45. Kh3 {[%clk 0:00:10.8]} 45... Rd2 {[%clk 0:00:18.3]} 46. Qa8+
{[%clk 0:00:10]} 46... Kh7 {[%clk 0:00:18.2]} 47. Qf3 {[%clk 0:00:08.6]} 47...
Rd5 {[%clk 0:00:13.8]} 48. Rxe6 {[%clk 0:00:06]} 48... Rd3 {[%clk 0:00:08.7]}
49. Qg4 {[%clk 0:00:03.5]} 49... Rd7 {[%clk 0:00:04.8]} 50. Qf5+ {[%clk
0:00:03.4]} 50... Kh8 {[%clk 0:00:04.5]} 51. Re8+ {[%clk 0:00:03.4]} 51... Qg8
{[%clk 0:00:04.6]} 52. Rxg8+ {[%clk 0:00:03.8]} 52... Kxg8 {[%clk 0:00:05.5]}
53. Qxd7 {[%clk 0:00:04.4]} 53... Kh7 {[%clk 0:00:06.4]} 54. Qxa7 {[%clk
0:00:04.8]} 54... b5 {[%clk 0:00:07.1]} 55. Qb6 {[%clk 0:00:05.7]} 55... b4
{[%clk 0:00:08]} 56. Qxb4 {[%clk 0:00:06.3]} 1-0

[Event "Early-Titled-Tuesday-Blitz-April-02-2024"]
[Site "Chess.com"]
[Date "2024.04.02"]
[Round "3"]
[White "Vse_po_kaify"]
[Black "Mikasinski"]
[Result "1/2-1/2"]
[WhiteElo "2484"]
[BlackElo "2641"]
[TimeControl "180+1"]
[EndTime "8:29:05 PDT"]
[Termination "Game drawn - insufficient material"]

1. e4 {[%clk 0:03:00]} 1... c5 {[%clk 0:02:59.7]} 2. c4 {[%clk 0:02:59.9]} 2...
Nc6 {[%clk 0:02:59.8]} 3. Nc3 {[%clk 0:03:00.6]} 3... g6 {[%clk 0:02:59.7]} 4.
g3 {[%clk 0:03:01]} 4... Bg7 {[%clk 0:02:59.7]} 5. Bg2 {[%clk 0:03:01.7]} 5...
d6 {[%clk 0:03:00.3]} 6. d3 {[%clk 0:03:02.3]} 6... e6 {[%clk 0:03:00.7]} 7.
Nge2 {[%clk 0:03:02.9]} 7... Nge7 {[%clk 0:03:01.4]} 8. O-O {[%clk 0:03:03.6]}
8... O-O {[%clk 0:03:01.8]} 9. f4 {[%clk 0:03:04.3]} 9... Nd4 {[%clk 0:03:01.9]}
10. h3 {[%clk 0:03:05]} 10... Rb8 {[%clk 0:03:01.4]} 11. Be3 {[%clk 0:03:05.4]}
11... a6 {[%clk 0:03:01.7]} 12. Rb1 {[%clk 0:03:05.7]} 12... b5 {[%clk
0:03:01.7]} 13. b3 {[%clk 0:03:06.1]} 13... Qa5 {[%clk 0:03:01.3]} 14. Qd2
{[%clk 0:02:59.7]} 14... Nec6 {[%clk 0:02:55.2]} 15. g4 {[%clk 0:02:56.9]} 15...
f5 {[%clk 0:02:46.8]} 16. gxf5 {[%clk 0:02:54.6]} 16... exf5 {[%clk 0:02:46.7]}
17. Rfe1 {[%clk 0:02:46.3]} 17... fxe4 {[%clk 0:02:44.7]} 18. Nxe4 {[%clk
0:02:42.7]} 18... Qxd2 {[%clk 0:02:36.2]} 19. Bxd2 {[%clk 0:02:42.9]} 19...
Nxe2+ {[%clk 0:02:29.7]} 20. Rxe2 {[%clk 0:02:43.1]} 20... Nd4 {[%clk
0:02:30.4]} 21. Rf2 {[%clk 0:02:43.1]} 21... Nf5 {[%clk 0:02:29.2]} 22. Kh2
{[%clk 0:02:32.5]} 22... Bd4 {[%clk 0:02:27.5]} 23. Re2 {[%clk 0:02:31.9]} 23...
Kg7 {[%clk 0:02:25]} 24. Rbe1 {[%clk 0:02:23.7]} 24... Re8 {[%clk 0:02:10.3]}
25. Nxd6 {[%clk 0:01:48.6]} 25... Rxe2 {[%clk 0:02:07.4]} 26. Nxf5+ {[%clk
0:01:48.4]} 26... Bxf5 {[%clk 0:02:07.1]} 27. Rxe2 {[%clk 0:01:49]} 27... Bxd3
{[%clk 0:02:04]} 28. Re7+ {[%clk 0:01:45.7]} 28... Kh8 {[%clk 0:02:01.1]} 29.
Rb7 {[%clk 0:01:39.8]} 29... Rxb7 {[%clk 0:02:00.4]} 30. Bxb7 {[%clk 0:01:39.6]}
30... bxc4 {[%clk 0:01:59]} 31. bxc4 {[%clk 0:01:31.1]} 31... Bxc4 {[%clk
0:01:59.9]} 32. a4 {[%clk 0:01:30.9]} 32... Kg7 {[%clk 0:01:57.5]} 33. Kg3
{[%clk 0:01:31]} 33... Kf6 {[%clk 0:01:57.7]} 34. Kf3 {[%clk 0:01:30.3]} 34...
Bd3 {[%clk 0:01:51.7]} 35. a5 {[%clk 0:01:27.5]} 35... Ke6 {[%clk 0:01:36.1]}
36. Be1 {[%clk 0:01:12.3]} 36... Kd7 {[%clk 0:01:34.3]} 37. Bd2 {[%clk
0:01:07.4]} 37... Bb5 {[%clk 0:01:32.3]} 38. Kg4 {[%clk 0:00:56.7]} 38... c4
{[%clk 0:01:27.5]} 39. Kg5 {[%clk 0:00:56.1]} 39... c3 {[%clk 0:01:27.9]} 40.
Bc1 {[%clk 0:00:56.1]} 40... Bd3 {[%clk 0:01:18.5]} 41. Kh6 {[%clk 0:00:52.2]}
41... Kc7 {[%clk 0:01:13.9]} 42. Bd5 {[%clk 0:00:47.3]} 42... Kd6 {[%clk
0:01:04.2]} 43. Bg8 {[%clk 0:00:47]} 43... Kc5 {[%clk 0:00:54.5]} 44. Bxh7
{[%clk 0:00:47]} 44... Kb4 {[%clk 0:00:27.2]} 45. Bxg6 {[%clk 0:00:46.3]} 45...
Bc4 {[%clk 0:00:09.8]} 46. Bc2 {[%clk 0:00:42.2]} 46... Kxa5 {[%clk 0:00:09.8]}
47. f5 {[%clk 0:00:39.7]} 47... Kb4 {[%clk 0:00:09.3]} 48. Kg6 {[%clk
0:00:39.9]} 48... Bb3 {[%clk 0:00:09.7]} 49. Be4 {[%clk 0:00:28.5]} 49... a5
{[%clk 0:00:07.7]} 50. f6 {[%clk 0:00:28.9]} 50... a4 {[%clk 0:00:07.7]} 51. f7
{[%clk 0:00:28.8]} 51... Bc5 {[%clk 0:00:06]} 52. Kg7 {[%clk 0:00:26.4]} 52...
a3 {[%clk 0:00:05.1]} 53. Bxa3+ {[%clk 0:00:26.2]} 53... Kxa3 {[%clk 0:00:06]}
54. f8=Q {[%clk 0:00:25.5]} 54... Bxf8+ {[%clk 0:00:06]} 55. Kxf8 {[%clk
0:00:26]} 55... Kb2 {[%clk 0:00:06.5]} 56. h4 {[%clk 0:00:24.6]} 56... Bc2
{[%clk 0:00:07.4]} 57. Bxc2 {[%clk 0:00:22.7]} 57... Kxc2 {[%clk 0:00:07.6]} 58.
h5 {[%clk 0:00:23.3]} 58... Kb3 {[%clk 0:00:04]} 59. h6 {[%clk 0:00:23.8]} 59...
c2 {[%clk 0:00:04.9]} 60. h7 {[%clk 0:00:24.3]} 60... c1=Q {[%clk 0:00:04.9]}
61. h8=Q {[%clk 0:00:24.2]} 61... Qc5+ {[%clk 0:00:04.6]} 62. Kg8 {[%clk
0:00:24.3]} 62... Qc8+ {[%clk 0:00:04.5]} 63. Kg7 {[%clk 0:00:24.5]} 63... Qxh8+
{[%clk 0:00:05.4]} 64. Kxh8 {[%clk 0:00:24.9]} 1/2-1/2